[Event "Titled Tuesday Blitz April 11 Late 2023"]
[White "Fernandez, Maria Florencia"]
[Black "Pulpan, Jakub"]
[WhiteFideId "116459"]
[BlackFideId "302759"]
[WhiteElo "2120"]
[BlackElo "2484"]
[Result "0-1"]
[Round "01"]
[TimeControl "180+2"]
[Date "2023.04.11"]
[WhiteClock "0:00:00"]
[BlackClock "0:00:00"]

1. d4 {[%clk 0:00:01]}  Nf6 {[%clk 0:00:01]} 2. c4 {[%clk 0:00:01]}  e6 {[%clk 0:00:01]} 3. Nc3 {[%clk 0:00:01]}  d5 {[%clk 0:00:01]} 4. cxd5 {[%clk 0:00:01]}  Nxd5 {[%clk 0:00:01]} 5. e4 {[%clk 0:00:01]}  Nxc3 {[%clk 0:00:01]} 6. bxc3 {[%clk 0:00:01]}  c5 {[%clk 0:00:01]} 7. Nf3 {[%clk 0:00:01]}  cxd4 {[%clk 0:00:01]} 8. cxd4 {[%clk 0:00:01]}  Bb4+ {[%clk 0:00:01]} 9. Bd2 {[%clk 0:00:01]}  Bxd2+ {[%clk 0:00:01]} 10. Qxd2 {[%clk 0:00:01]}  Nd7 {[%clk 0:00:01]} 11. Bd3 {[%clk 0:00:01]}  b6 {[%clk 0:00:01]} 12. O-O {[%clk 0:00:01]}  Bb7 {[%clk 0:00:01]} 13. Rac1 {[%clk 0:00:01]}  h6 {[%clk 0:00:00]} 14. Qf4 {[%clk 0:00:01]}  O-O {[%clk 0:00:00]} 15. Rc2 {[%clk 0:00:00]}  Rc8 {[%clk 0:00:00]} 16. Rfc1 {[%clk 0:00:00]}  Rxc2 {[%clk 0:00:00]} 17. Rxc2 {[%clk 0:00:00]}  Nc5 {[%clk 0:00:00]} 18. Ne5 {[%clk 0:00:00]}  Nxd3 {[%clk 0:00:00]} 19. Nxd3 {[%clk 0:00:00]}  Qxd4 {[%clk 0:00:00]} 20. Rd2 {[%clk 0:00:00]}  Qa1+ {[%clk 0:00:00]} 0-1


[Site "https://www.chess.com"]

[Event "Titled Tuesday Blitz April 11 Late 2023"]
[White "Hambleton, Aman"]
[Black "Gerbelli Neto, Eduardo"]
[WhiteFideId "2606577"]
[BlackFideId "2103281"]
[WhiteElo "2511"]
[BlackElo "2178"]
[Result "1-0"]
[Round "01"]
[TimeControl "180+2"]
[Date "2023.04.11"]
[WhiteClock "0:00:00"]
[BlackClock "0:00:00"]

1. d4 {[%clk 0:00:01]}  d5 {[%clk 0:00:01]} 2. Bf4 {[%clk 0:00:01]}  Nf6 {[%clk 0:00:01]} 3. e3 {[%clk 0:00:01]}  Bf5 {[%clk 0:00:01]} 4. c4 {[%clk 0:00:01]}  c6 {[%clk 0:00:01]} 5. Qb3 {[%clk 0:00:01]}  Qb6 {[%clk 0:00:01]} 6. c5 {[%clk 0:00:01]}  Qxb3 {[%clk 0:00:01]} 7. axb3 {[%clk 0:00:01]}  Nbd7 {[%clk 0:00:01]} 8. b4 {[%clk 0:00:01]}  a6 {[%clk 0:00:01]} 9. Nd2 {[%clk 0:00:01]}  Ne4 {[%clk 0:00:01]} 10. Nxe4 {[%clk 0:00:01]}  Bxe4 {[%clk 0:00:01]} 11. b5 {[%clk 0:00:01]}  cxb5 {[%clk 0:00:01]} 12. f3 {[%clk 0:00:01]}  Bg6 {[%clk 0:00:01]} 13. Bxb5 {[%clk 0:00:01]}  e6 {[%clk 0:00:01]} 14. b4 {[%clk 0:00:01]}  Rc8 {[%clk 0:00:01]} 15. Ba4 {[%clk 0:00:00]}  Bd3 {[%clk 0:00:01]} 16. Kd2 {[%clk 0:00:00]}  Bc4 {[%clk 0:00:01]} 17. Ne2 {[%clk 0:00:00]}  f6 {[%clk 0:00:01]} 18. Rhb1 {[%clk 0:00:00]}  Kd8 {[%clk 0:00:01]} 19. b5 {[%clk 0:00:00]}  e5 {[%clk 0:00:01]} 20. Bg3 {[%clk 0:00:00]}  h5 {[%clk 0:00:01]} 21. bxa6 {[%clk 0:00:00]}  Bxa6 {[%clk 0:00:01]} 22. Nc3 {[%clk 0:00:00]}  h4 {[%clk 0:00:00]} 23. Bf2 {[%clk 0:00:00]}  Bc4 {[%clk 0:00:00]} 24. Rxb7 {[%clk 0:00:00]}  Nb8 {[%clk 0:00:00]} 25. Bb3 {[%clk 0:00:00]}  Nc6 {[%clk 0:00:00]} 26. Nxd5 {[%clk 0:00:00]}  Bxb3 {[%clk 0:00:00]} 27. Rxb3 {[%clk 0:00:00]}  exd4 {[%clk 0:00:00]} 28. exd4 {[%clk 0:00:00]}  Rh5 {[%clk 0:00:00]} 29. Nf4 {[%clk 0:00:00]}  Rf5 {[%clk 0:00:00]} 30. Ne6+ {[%clk 0:00:00]}  Kd7 {[%clk 0:00:00]} 31. Nxf8+ {[%clk 0:00:00]}  Rxf8 {[%clk 0:00:00]} 32. Kd3 {[%clk 0:00:00]}  Rd8 {[%clk 0:00:00]} 33. Kc4 {[%clk 0:00:00]}  Kc7 {[%clk 0:00:00]} 34. Rd3 {[%clk 0:00:00]}  Rfd5 {[%clk 0:00:00]} 35. Kc3 {[%clk 0:00:00]}  g5 {[%clk 0:00:00]} 36. g3 {[%clk 0:00:00]}  Ne5 {[%clk 0:00:00]} 37. Rd2 {[%clk 0:00:00]}  Nxf3 {[%clk 0:00:00]} 38. Rd3 {[%clk 0:00:00]}  Ne5 {[%clk 0:00:00]} 39. Rdd1 {[%clk 0:00:00]}  hxg3 {[%clk 0:00:00]} 40. Bxg3 {[%clk 0:00:00]}  Kc6 {[%clk 0:00:00]} 41. Ra6+ {[%clk 0:00:00]}  Kb5 {[%clk 0:00:00]} 42. Rb6+ {[%clk 0:00:00]}  Ka5 {[%clk 0:00:00]} 43. Ra1# {[%clk 0:00:00]} 1-0


[Site "https://www.chess.com"]

[Event "Titled Tuesday Blitz April 11 Late 2023"]
[White "Schmakel, Sam"]
[Black "Girsh, Daniel"]
[WhiteFideId "2039311"]
[BlackFideId "30949190"]
[WhiteElo "2356"]
[BlackElo "2075"]
[Result "1-0"]
[Round "01"]
[TimeControl "180+2"]
[Date "2023.04.11"]
[WhiteClock "0:00:12"]
[BlackClock "0:00:06"]

1. Nf3 {[%clk 0:02:59]}  d5 {[%clk 0:02:59]} 2. g3 {[%clk 0:02:59]}  g6 {[%clk 0:02:59]} 3. Bg2 {[%clk 0:02:59]}  Bg7 {[%clk 0:03:00]} 4. O-O {[%clk 0:03:00]}  Nf6 {[%clk 0:03:00]} 5. b3 {[%clk 0:02:59]}  O-O {[%clk 0:03:01]} 6. Bb2 {[%clk 0:03:00]}  c5 {[%clk 0:03:01]} 7. d3 {[%clk 0:02:58]}  Nc6 {[%clk 0:03:01]} 8. Ne5 {[%clk 0:02:58]}  Qc7 {[%clk 0:02:51]} 9. Nxc6 {[%clk 0:02:56]}  Qxc6 {[%clk 0:02:51]} 10. c4 {[%clk 0:02:56]}  Qd6 {[%clk 0:02:50]} 11. cxd5 {[%clk 0:02:50]}  Nxd5 {[%clk 0:02:50]} 12. Qc1 {[%clk 0:02:44]}  Nf6 {[%clk 0:02:36]} 13. Nd2 {[%clk 0:02:40]}  Bg4 {[%clk 0:02:33]} 14. Nc4 {[%clk 0:02:36]}  Qe6 {[%clk 0:02:32]} 15. Re1 {[%clk 0:02:36]}  Rab8 {[%clk 0:02:27]} 16. Ne3 {[%clk 0:02:28]}  Bh3 {[%clk 0:02:26]} 17. Qxc5 {[%clk 0:02:16]}  Nd7 {[%clk 0:01:57]} 18. Qc2 {[%clk 0:02:05]}  Rfc8 {[%clk 0:01:56]} 19. Qd2 {[%clk 0:02:05]}  Bh6 {[%clk 0:01:52]} 20. Rac1 {[%clk 0:01:59]}  Nf6 {[%clk 0:01:48]} 21. Rxc8+ {[%clk 0:01:45]}  Rxc8 {[%clk 0:01:49]} 22. Rc1 {[%clk 0:01:44]}  Rxc1+ {[%clk 0:01:48]} 23. Qxc1 {[%clk 0:01:45]}  Bxg2 {[%clk 0:01:47]} 24. Kxg2 {[%clk 0:01:46]}  Nd5 {[%clk 0:01:42]} 25. Bd4 {[%clk 0:01:39]}  a6 {[%clk 0:01:40]} 26. Qc5 {[%clk 0:01:33]}  Bxe3 {[%clk 0:01:37]} 27. Bxe3 {[%clk 0:01:34]}  h5 {[%clk 0:01:21]} 28. Qd4 {[%clk 0:01:28]}  h4 {[%clk 0:01:16]} 29. gxh4 {[%clk 0:01:22]}  Nxe3+ {[%clk 0:01:16]} 30. fxe3 {[%clk 0:01:19]}  Qc6+ {[%clk 0:01:13]} 31. Kf2 {[%clk 0:01:10]}  Qh1 {[%clk 0:00:45]} 32. Qe5 {[%clk 0:01:10]}  e6 {[%clk 0:00:40]} 33. e4 {[%clk 0:01:02]}  Qb1 {[%clk 0:00:35]} 34. Qb8+ {[%clk 0:00:56]}  Kg7 {[%clk 0:00:35]} 35. Qxb7 {[%clk 0:00:57]}  Qxa2 {[%clk 0:00:34]} 36. Qb6 {[%clk 0:00:57]}  Qa1 {[%clk 0:00:32]} 37. Qe3 {[%clk 0:00:45]}  Qf6+ {[%clk 0:00:30]} 38. Kg3 {[%clk 0:00:46]}  Qe5+ {[%clk 0:00:29]} 39. Kh3 {[%clk 0:00:45]}  Qc3 {[%clk 0:00:28]} 40. Qb6 {[%clk 0:00:35]}  Qe1 {[%clk 0:00:26]} 41. Qd4+ {[%clk 0:00:24]}  Kg8 {[%clk 0:00:25]} 42. Qd8+ {[%clk 0:00:24]}  Kg7 {[%clk 0:00:24]} 43. Qd4+ {[%clk 0:00:24]}  Kg8 {[%clk 0:00:24]} 44. Qe3 {[%clk 0:00:25]}  Qf1+ {[%clk 0:00:24]} 45. Kg3 {[%clk 0:00:25]}  Qe1+ {[%clk 0:00:22]} 46. Kg4 {[%clk 0:00:18]}  Kg7 {[%clk 0:00:20]} 47. h5 {[%clk 0:00:15]}  f5+ {[%clk 0:00:19]} 48. exf5 {[%clk 0:00:15]}  exf5+ {[%clk 0:00:18]} 49. Kg5 {[%clk 0:00:14]}  Qb4 {[%clk 0:00:11]} 50. Qe5+ {[%clk 0:00:09]}  Kf8 {[%clk 0:00:09]} 51. hxg6 {[%clk 0:00:09]}  Qg4+ {[%clk 0:00:08]} 52. Kf6 {[%clk 0:00:09]}  Qh4+ {[%clk 0:00:08]} 53. Kxf5 {[%clk 0:00:10]}  Qh5+ {[%clk 0:00:08]} 54. Kf6 {[%clk 0:00:10]}  Qh4+ {[%clk 0:00:08]} 55. Ke6 {[%clk 0:00:10]}  Qe7+ {[%clk 0:00:08]} 56. Kf5 {[%clk 0:00:11]}  Qd7+ {[%clk 0:00:05]} 57. Kg5 {[%clk 0:00:11]}  Qd8+ {[%clk 0:00:05]} 58. Qf6+ {[%clk 0:00:11]}  Qxf6+ {[%clk 0:00:05]} 59. Kxf6 {[%clk 0:00:12]}  a5 {[%clk 0:00:05]} 60. h4 {[%clk 0:00:12]}  a4 {[%clk 0:00:06]} 61. bxa4 {[%clk 0:00:12]} 1-0


[Site "https://www.chess.com"]

[Event "Titled Tuesday Blitz April 11 Late 2023"]
[White "Pakleza, Zbigniew"]
[Black "Gatterer, Florian"]
[WhiteFideId "1119290"]
[BlackFideId "811688"]
[WhiteElo "2410"]
[BlackElo "2221"]
[Result "1-0"]
[Round "01"]
[TimeControl "180+2"]
[Date "2023.04.11"]
[WhiteClock "0:00:04"]
[BlackClock "0:00:01"]

1. d4 {[%clk 0:03:00]}  d5 {[%clk 0:02:59]} 2. Bf4 {[%clk 0:03:00]}  c5 {[%clk 0:02:58]} 3. e3 {[%clk 0:03:00]}  Nc6 {[%clk 0:02:58]} 4. c3 {[%clk 0:03:00]}  Qb6 {[%clk 0:02:55]} 5. Qb3 {[%clk 0:03:00]}  c4 {[%clk 0:02:56]} 6. Qc2 {[%clk 0:03:00]}  e5 {[%clk 0:02:53]} 7. dxe5 {[%clk 0:02:56]}  Nge7 {[%clk 0:02:46]} 8. Nd2 {[%clk 0:02:53]}  Ng6 {[%clk 0:02:46]} 9. Bg3 {[%clk 0:02:48]}  Ngxe5 {[%clk 0:02:40]} 10. Ngf3 {[%clk 0:02:48]}  Nxf3+ {[%clk 0:02:34]} 11. Nxf3 {[%clk 0:02:49]}  Be7 {[%clk 0:02:33]} 12. Be2 {[%clk 0:02:44]}  O-O {[%clk 0:02:32]} 13. O-O {[%clk 0:02:44]}  Be6 {[%clk 0:02:32]} 14. Rfd1 {[%clk 0:02:41]}  Qc5 {[%clk 0:02:27]} 15. Bh4 {[%clk 0:02:25]}  Bxh4 {[%clk 0:02:20]} 16. Nxh4 {[%clk 0:02:26]}  b5 {[%clk 0:02:16]} 17. a3 {[%clk 0:02:25]}  a5 {[%clk 0:02:15]} 18. Nf3 {[%clk 0:02:24]}  b4 {[%clk 0:02:15]} 19. Nd4 {[%clk 0:02:22]}  Nxd4 {[%clk 0:02:02]} 20. Rxd4 {[%clk 0:02:22]}  Rab8 {[%clk 0:01:54]} 21. axb4 {[%clk 0:02:15]}  axb4 {[%clk 0:01:53]} 22. f4 {[%clk 0:02:04]}  g6 {[%clk 0:01:52]} 23. g4 {[%clk 0:02:02]}  bxc3 {[%clk 0:01:40]} 24. bxc3 {[%clk 0:02:03]}  f5 {[%clk 0:01:35]} 25. g5 {[%clk 0:01:57]}  Rfe8 {[%clk 0:01:35]} 26. Kf2 {[%clk 0:01:56]}  Bf7 {[%clk 0:01:34]} 27. Qd2 {[%clk 0:01:48]}  Qe7 {[%clk 0:01:00]} 28. Bf3 {[%clk 0:01:40]}  Red8 {[%clk 0:00:45]} 29. Bxd5 {[%clk 0:01:23]}  Bxd5 {[%clk 0:00:26]} 30. Rxd5 {[%clk 0:01:24]}  Rxd5 {[%clk 0:00:19]} 31. Qxd5+ {[%clk 0:01:25]}  Qf7 {[%clk 0:00:19]} 32. Qxf7+ {[%clk 0:01:04]}  Kxf7 {[%clk 0:00:19]} 33. Ra7+ {[%clk 0:01:05]}  Kg8 {[%clk 0:00:19]} 34. Rc7 {[%clk 0:01:00]}  Rb2+ {[%clk 0:00:19]} 35. Kf3 {[%clk 0:00:57]}  Rxh2 {[%clk 0:00:18]} 36. Rxc4 {[%clk 0:00:57]}  h6 {[%clk 0:00:19]} 37. gxh6 {[%clk 0:00:51]}  Rxh6 {[%clk 0:00:18]} 38. Rc8+ {[%clk 0:00:50]}  Kg7 {[%clk 0:00:18]} 39. c4 {[%clk 0:00:50]}  Rh2 {[%clk 0:00:18]} 40. c5 {[%clk 0:00:49]}  Rc2 {[%clk 0:00:17]} 41. c6 {[%clk 0:00:50]}  Kh7 {[%clk 0:00:17]} 42. Rc7+ {[%clk 0:00:29]}  Kh6 {[%clk 0:00:17]} 43. Kg3 {[%clk 0:00:28]}  Re2 {[%clk 0:00:16]} 44. Kf3 {[%clk 0:00:22]}  Rc2 {[%clk 0:00:15]} 45. Rc8 {[%clk 0:00:22]}  Kg7 {[%clk 0:00:13]} 46. Kg3 {[%clk 0:00:22]}  Re2 {[%clk 0:00:12]} 47. Kf3 {[%clk 0:00:22]}  Rc2 {[%clk 0:00:11]} 48. c7 {[%clk 0:00:13]}  Kh7 {[%clk 0:00:11]} 49. Kg3 {[%clk 0:00:14]}  Kg7 {[%clk 0:00:10]} 50. Kh3 {[%clk 0:00:15]}  Kh7 {[%clk 0:00:10]} 51. Kh4 {[%clk 0:00:15]}  Kg7 {[%clk 0:00:09]} 52. Kg3 {[%clk 0:00:15]}  Kh7 {[%clk 0:00:09]} 53. Kh3 {[%clk 0:00:15]}  Kg7 {[%clk 0:00:09]} 54. Kh4 {[%clk 0:00:16]}  Kh7 {[%clk 0:00:09]} 55. Kg5 {[%clk 0:00:12]}  Kg7 {[%clk 0:00:07]} 56. Rb8 {[%clk 0:00:12]}  Rxc7 {[%clk 0:00:06]} 57. Rb6 {[%clk 0:00:13]}  Rc3 {[%clk 0:00:05]} 58. Rxg6+ {[%clk 0:00:13]}  Kh7 {[%clk 0:00:06]} 59. Re6 {[%clk 0:00:12]}  Kg7 {[%clk 0:00:05]} 60. Kxf5 {[%clk 0:00:10]}  Kf7 {[%clk 0:00:05]} 61. e4 {[%clk 0:00:09]}  Rc5+ {[%clk 0:00:05]} 62. Re5 {[%clk 0:00:09]}  Rc3 {[%clk 0:00:05]} 63. Ra5 {[%clk 0:00:09]}  Rc7 {[%clk 0:00:05]} 64. e5 {[%clk 0:00:09]}  Rb7 {[%clk 0:00:04]} 65. Ra6 {[%clk 0:00:09]}  Rc7 {[%clk 0:00:04]} 66. Rh6 {[%clk 0:00:09]}  Kg7 {[%clk 0:00:04]} 67. Rg6+ {[%clk 0:00:09]}  Kf7 {[%clk 0:00:04]} 68. e6+ {[%clk 0:00:09]}  Kf8 {[%clk 0:00:04]} 69. Kf6 {[%clk 0:00:08]}  Ra7 {[%clk 0:00:03]} 70. f5 {[%clk 0:00:07]}  Rf7+ {[%clk 0:00:03]} 71. Ke5 {[%clk 0:00:08]}  Ra7 {[%clk 0:00:02]} 72. Rh6 {[%clk 0:00:08]}  Ra5+ {[%clk 0:00:02]} 73. Kf6 {[%clk 0:00:08]}  Kg8 {[%clk 0:00:02]} 74. Rh2 {[%clk 0:00:07]}  Ra8 {[%clk 0:00:01]} 75. Rd2 {[%clk 0:00:06]}  Kf8 {[%clk 0:00:01]} 76. Rd8+ {[%clk 0:00:04]} 1-0


[Site "https://www.chess.com"]

[Event "Titled Tuesday Blitz April 11 Late 2023"]
[White "Koziorowicz, Michal"]
[Black "Senthilkumar, Pranav"]
[WhiteFideId "21809194"]
[BlackFideId "2083477"]
[WhiteElo "2255"]
[BlackElo "1860"]
[Result "1-0"]
[Round "01"]
[TimeControl "180+2"]
[Date "2023.04.11"]
[WhiteClock "0:00:00"]
[BlackClock "0:00:00"]

1. Nf3 {[%clk 0:00:01]}  Nf6 {[%clk 0:00:01]} 2. g3 {[%clk 0:00:01]}  d5 {[%clk 0:00:01]} 3. Bg2 {[%clk 0:00:01]}  c5 {[%clk 0:00:01]} 4. O-O {[%clk 0:00:01]}  Nc6 {[%clk 0:00:01]} 5. d4 {[%clk 0:00:01]}  cxd4 {[%clk 0:00:01]} 6. Nxd4 {[%clk 0:00:01]}  e6 {[%clk 0:00:01]} 7. b3 {[%clk 0:00:01]}  Be7 {[%clk 0:00:01]} 8. Bb2 {[%clk 0:00:01]}  O-O {[%clk 0:00:01]} 9. Nc3 {[%clk 0:00:01]}  Bd7 {[%clk 0:00:01]} 10. e4 {[%clk 0:00:01]}  dxe4 {[%clk 0:00:01]} 11. Nxe4 {[%clk 0:00:01]}  Nxe4 {[%clk 0:00:01]} 12. Bxe4 {[%clk 0:00:01]}  Bf6 {[%clk 0:00:01]} 13. Nxc6 {[%clk 0:00:01]}  Bxc6 {[%clk 0:00:01]} 14. Bxf6 {[%clk 0:00:01]}  Qxf6 {[%clk 0:00:01]} 15. Bxc6 {[%clk 0:00:01]}  bxc6 {[%clk 0:00:01]} 16. c4 {[%clk 0:00:01]}  Rad8 {[%clk 0:00:01]} 17. Qe2 {[%clk 0:00:01]}  Rd4 {[%clk 0:00:01]} 18. Rfe1 {[%clk 0:00:01]}  Rfd8 {[%clk 0:00:01]} 19. Qe5 {[%clk 0:00:01]}  Qf3 {[%clk 0:00:01]} 20. Qe3 {[%clk 0:00:01]}  Qf6 {[%clk 0:00:01]} 21. Kg2 {[%clk 0:00:01]}  h5 {[%clk 0:00:01]} 22. h4 {[%clk 0:00:01]}  Rd3 {[%clk 0:00:01]} 23. Qe2 {[%clk 0:00:01]}  g6 {[%clk 0:00:01]} 24. Rf1 {[%clk 0:00:01]}  Rd2 {[%clk 0:00:01]} 25. Qf3 {[%clk 0:00:01]}  Qxf3+ {[%clk 0:00:01]} 26. Kxf3 {[%clk 0:00:01]}  R8d3+ {[%clk 0:00:01]} 27. Kg2 {[%clk 0:00:01]}  Kf8 {[%clk 0:00:01]} 28. Rfe1 {[%clk 0:00:01]}  Ke7 {[%clk 0:00:01]} 29. Re5 {[%clk 0:00:01]}  Rc2 {[%clk 0:00:01]} 30. Ra5 {[%clk 0:00:01]}  Rdd2 {[%clk 0:00:01]} 31. Rxa7+ {[%clk 0:00:01]}  Kf6 {[%clk 0:00:01]} 32. Rf1 {[%clk 0:00:01]}  Rxa2 {[%clk 0:00:01]} 33. Rxa2 {[%clk 0:00:01]}  Rxa2 {[%clk 0:00:01]} 34. Rb1 {[%clk 0:00:01]}  Rc2 {[%clk 0:00:01]} 35. Kf3 {[%clk 0:00:01]}  Ke5 {[%clk 0:00:01]} 36. Ke3 {[%clk 0:00:01]}  Kd6 {[%clk 0:00:01]} 37. f3 {[%clk 0:00:01]}  Kc5 {[%clk 0:00:01]} 38. Kd3 {[%clk 0:00:01]}  Rg2 {[%clk 0:00:01]} 39. b4+ {[%clk 0:00:01]}  Kb6 {[%clk 0:00:01]} 40. Ke4 {[%clk 0:00:01]}  Rxg3 {[%clk 0:00:01]} 41. Kf4 {[%clk 0:00:01]}  Rg2 {[%clk 0:00:01]} 42. Ke5 {[%clk 0:00:01]}  g5 {[%clk 0:00:00]} 43. hxg5 {[%clk 0:00:00]}  Rxg5+ {[%clk 0:00:01]} 44. Kd6 {[%clk 0:00:00]}  Rf5 {[%clk 0:00:00]} 45. Rh1 {[%clk 0:00:00]}  Rxf3 {[%clk 0:00:00]} 46. Rxh5 {[%clk 0:00:00]}  Rf4 {[%clk 0:00:00]} 47. Rc5 {[%clk 0:00:00]}  Rd4+ {[%clk 0:00:00]} 48. Ke7 {[%clk 0:00:00]}  Rf4 {[%clk 0:00:00]} 49. Kd6 {[%clk 0:00:00]}  Rd4+ {[%clk 0:00:00]} 50. Ke5 {[%clk 0:00:00]}  Rd1 {[%clk 0:00:00]} 51. Ra5 {[%clk 0:00:00]}  Rb1 {[%clk 0:00:00]} 52. Kd6 {[%clk 0:00:00]}  Rd1+ {[%clk 0:00:00]} 53. Ke5 {[%clk 0:00:00]}  Rb1 {[%clk 0:00:00]} 54. Kd6 {[%clk 0:00:00]}  Rd1+ {[%clk 0:00:00]} 55. Ke7 {[%clk 0:00:00]}  Rb1 {[%clk 0:00:00]} 56. c5+ {[%clk 0:00:00]}  Kb7 {[%clk 0:00:00]} 57. Kxf7 {[%clk 0:00:00]}  Rxb4 {[%clk 0:00:00]} 58. Kxe6 {[%clk 0:00:00]}  Rb5 {[%clk 0:00:00]} 59. Rxb5+ {[%clk 0:00:00]}  cxb5 {[%clk 0:00:00]} 60. Kd7 {[%clk 0:00:00]}  b4 {[%clk 0:00:00]} 61. c6+ {[%clk 0:00:00]}  Kb6 {[%clk 0:00:00]} 62. c7 {[%clk 0:00:00]}  Kb5 {[%clk 0:00:00]} 63. c8=Q {[%clk 0:00:00]}  Ka4 {[%clk 0:00:00]} 64. Qc2+ {[%clk 0:00:00]}  Ka3 {[%clk 0:00:00]} 65. Kc6 {[%clk 0:00:00]}  b3 {[%clk 0:00:00]} 66. Qb1 {[%clk 0:00:00]} 1-0


[Site "https://www.chess.com"]

[Event "Titled Tuesday Blitz April 11 Late 2023"]
[White "Nazari, Arad"]
[Black "Perez Rodriguez, Jennifer"]
[WhiteFideId "12577324"]
[BlackFideId "3507831"]
[WhiteElo "2242"]
[BlackElo "2116"]
[Result "1-0"]
[Round "01"]
[TimeControl "180+2"]
[Date "2023.04.11"]
[WhiteClock "0:00:00"]
[BlackClock "0:00:00"]

1. e4 {[%clk 0:00:01]}  e5 {[%clk 0:00:01]} 2. f4 {[%clk 0:00:01]}  d5 {[%clk 0:00:01]} 3. exd5 {[%clk 0:00:01]}  exf4 {[%clk 0:00:01]} 4. Nf3 {[%clk 0:00:01]}  Nf6 {[%clk 0:00:01]} 5. Bb5+ {[%clk 0:00:01]}  Bd7 {[%clk 0:00:01]} 6. Bxd7+ {[%clk 0:00:01]}  Nbxd7 {[%clk 0:00:01]} 7. O-O {[%clk 0:00:01]}  Nb6 {[%clk 0:00:01]} 8. c4 {[%clk 0:00:01]}  Qd7 {[%clk 0:00:01]} 9. Ne5 {[%clk 0:00:01]}  Qf5 {[%clk 0:00:01]} 10. d4 {[%clk 0:00:01]}  g5 {[%clk 0:00:01]} 11. Nc3 {[%clk 0:00:00]}  Bg7 {[%clk 0:00:00]} 12. Qf3 {[%clk 0:00:00]}  Bh6 {[%clk 0:00:00]} 13. h3 {[%clk 0:00:00]}  O-O {[%clk 0:00:00]} 14. c5 {[%clk 0:00:00]}  Nbd7 {[%clk 0:00:00]} 15. Nxd7 {[%clk 0:00:00]}  Qxd7 {[%clk 0:00:00]} 16. Bd2 {[%clk 0:00:00]}  Rad8 {[%clk 0:00:00]} 17. Rae1 {[%clk 0:00:00]}  Nxd5 {[%clk 0:00:00]} 18. Re5 {[%clk 0:00:00]}  Nxc3 {[%clk 0:00:00]} 19. bxc3 {[%clk 0:00:00]}  f6 {[%clk 0:00:00]} 20. Re2 {[%clk 0:00:00]}  Rfe8 {[%clk 0:00:00]} 21. Rfe1 {[%clk 0:00:00]}  c6 {[%clk 0:00:00]} 22. Qh5 {[%clk 0:00:00]}  Rxe2 {[%clk 0:00:00]} 23. Rxe2 {[%clk 0:00:00]}  Bg7 {[%clk 0:00:00]} 24. h4 {[%clk 0:00:00]}  Qf7 {[%clk 0:00:00]} 25. Qg4 {[%clk 0:00:00]}  h6 {[%clk 0:00:00]} 26. hxg5 {[%clk 0:00:00]}  fxg5 {[%clk 0:00:00]} 27. Re6 {[%clk 0:00:00]}  Re8 {[%clk 0:00:00]} 28. Rd6 {[%clk 0:00:00]}  Re7 {[%clk 0:00:00]} 29. Kh2 {[%clk 0:00:00]}  Qxa2 {[%clk 0:00:00]} 30. Qc8+ {[%clk 0:00:00]}  Kh7 {[%clk 0:00:00]} 31. Qf5+ {[%clk 0:00:00]}  Kg8 {[%clk 0:00:00]} 32. Rd8+ {[%clk 0:00:00]} 1-0


[Site "https://www.chess.com"]

[Event "Titled Tuesday Blitz April 11 Late 2023"]
[White "Golubev, Mikhail"]
[Black "Korchmar, Vasiliy"]
[WhiteFideId "14100983"]
[BlackFideId "24131750"]
[WhiteElo "2374"]
[BlackElo "2370"]
[Result "0-1"]
[Round "01"]
[TimeControl "180+2"]
[Date "2023.04.11"]
[WhiteClock "0:00:03"]
[BlackClock "0:00:04"]

1. e4 {[%clk 0:02:59]}  c5 {[%clk 0:03:00]} 2. Nf3 {[%clk 0:02:58]}  d6 {[%clk 0:03:00]} 3. d4 {[%clk 0:02:58]}  cxd4 {[%clk 0:03:01]} 4. Nxd4 {[%clk 0:02:58]}  Nf6 {[%clk 0:03:01]} 5. Nc3 {[%clk 0:02:59]}  Nc6 {[%clk 0:03:02]} 6. Bc4 {[%clk 0:02:58]}  Qb6 {[%clk 0:03:01]} 7. Nde2 {[%clk 0:02:54]}  e6 {[%clk 0:03:00]} 8. Bb3 {[%clk 0:02:54]}  a6 {[%clk 0:02:59]} 9. O-O {[%clk 0:02:51]}  Be7 {[%clk 0:02:59]} 10. Bg5 {[%clk 0:02:50]}  Qc7 {[%clk 0:02:56]} 11. Ng3 {[%clk 0:02:50]}  h6 {[%clk 0:02:55]} 12. Bxf6 {[%clk 0:02:46]}  Bxf6 {[%clk 0:02:56]} 13. Nh5 {[%clk 0:02:46]}  Be5 {[%clk 0:02:46]} 14. f4 {[%clk 0:02:38]}  Bd4+ {[%clk 0:02:45]} 15. Kh1 {[%clk 0:02:38]}  O-O {[%clk 0:02:46]} 16. f5 {[%clk 0:02:28]}  Qe7 {[%clk 0:02:07]} 17. f6 {[%clk 0:02:28]}  Bxf6 {[%clk 0:02:02]} 18. Rxf6 {[%clk 0:02:27]}  Ne5 {[%clk 0:01:50]} 19. Qd2 {[%clk 0:02:14]}  Kh7 {[%clk 0:01:39]} 20. Rff1 {[%clk 0:02:02]}  b5 {[%clk 0:01:36]} 21. Rad1 {[%clk 0:02:00]}  Bb7 {[%clk 0:01:27]} 22. Qxd6 {[%clk 0:01:57]}  Qg5 {[%clk 0:01:27]} 23. Ng3 {[%clk 0:01:47]}  Ng4 {[%clk 0:01:11]} 24. Rd3 {[%clk 0:01:15]}  f5 {[%clk 0:00:55]} 25. exf5 {[%clk 0:00:38]}  Ne3 {[%clk 0:00:38]} 26. Rxe3 {[%clk 0:00:33]}  Qxe3 {[%clk 0:00:39]} 27. Qxe6 {[%clk 0:00:32]}  Qd2 {[%clk 0:00:32]} 28. Qg6+ {[%clk 0:00:27]}  Kh8 {[%clk 0:00:31]} 29. Nh5 {[%clk 0:00:25]}  Qd7 {[%clk 0:00:10]} 30. f6 {[%clk 0:00:22]}  gxf6 {[%clk 0:00:11]} 31. Qxh6+ {[%clk 0:00:21]}  Qh7 {[%clk 0:00:11]} 32. Qxh7+ {[%clk 0:00:20]}  Kxh7 {[%clk 0:00:12]} 33. Rxf6 {[%clk 0:00:18]}  Rxf6 {[%clk 0:00:07]} 34. Nxf6+ {[%clk 0:00:18]}  Kg6 {[%clk 0:00:08]} 35. Bd5 {[%clk 0:00:17]}  Bxd5 {[%clk 0:00:03]} 36. Nfxd5 {[%clk 0:00:17]}  Re8 {[%clk 0:00:02]} 37. h3 {[%clk 0:00:16]}  Re1+ {[%clk 0:00:02]} 38. Kh2 {[%clk 0:00:16]}  Rc1 {[%clk 0:00:03]} 39. Ne3 {[%clk 0:00:16]}  Re1 {[%clk 0:00:02]} 40. Ncd5 {[%clk 0:00:16]}  Rb1 {[%clk 0:00:02]} 41. b3 {[%clk 0:00:15]}  Ra1 {[%clk 0:00:03]} 42. a3 {[%clk 0:00:12]}  Rxa3 {[%clk 0:00:03]} 43. g4 {[%clk 0:00:10]}  Ra1 {[%clk 0:00:03]} 44. Nc7 {[%clk 0:00:06]}  Kg5 {[%clk 0:00:02]} 45. Kg3 {[%clk 0:00:05]}  Rg1+ {[%clk 0:00:02]} 46. Ng2 {[%clk 0:00:05]}  Rc1 {[%clk 0:00:02]} 47. h4+ {[%clk 0:00:04]}  Kf6 {[%clk 0:00:02]} 48. Nxa6 {[%clk 0:00:04]}  Rxc2 {[%clk 0:00:02]} 49. b4 {[%clk 0:00:04]}  Rc3+ {[%clk 0:00:02]} 50. Kf4 {[%clk 0:00:03]}  Rc4+ {[%clk 0:00:03]} 51. Kf3 {[%clk 0:00:03]}  Ke5 {[%clk 0:00:04]} 52. Ne3 {[%clk 0:00:03]}  Rc3 {[%clk 0:00:04]} 0-1


[Site "https://www.chess.com"]